bitfinex/quotes_SOLUSD_20260228
["timestamp","ask_amount","ask_price","bid_price","bid_amount"]
[1772301744680,4.02438918,81.378,81.351,4.07655939]
[1772301745182,2.60221193,81.382,81.361,4.07655939]
[1772301746258,2.60221193,81.382,81.37,16.17680671]
[1772301746460,2.60221193,81.382,81.369,4.07655939]
[1772301748055,2.60221193,81.382,81.37,20.2533661]
[1772301748270,4.02438918,81.389,81.37,16.17680671]
[1772301748669,4.02438918,81.405,81.381,4.07655939]
[1772301749279,32.26525297,81.423,81.4,16.17680671]
[1772301749280,4.02438918,81.422,81.4,16.17680671]
[1772301749466,4.02438918,81.422,81.391,4.07655939]
[1772301749671,4.02438918,81.422,81.4,4.07655939]
[1772301749870,4.02438918,81.422,81.4,20.2533661]
[1772301750685,1e-08,81.423,81.401,4.07655939]
[1772301751182,1e-08,81.423,81.411,4.07655939]
[1772301751565,1e-08,81.423,81.413,4.07655939]
[1772301753785,1e-08,81.423,81.414,12.28289974]
[1772301754184,1e-08,81.423,81.405,4.07655939]
[1772301755491,1e-08,81.423,81.406,12.28410682]
[1772301756072,1e-08,81.423,81.41,16.17680671]
[1772301756282,1e-08,81.423,81.411,4.07655939]
[1772301756586,4.02438918,81.422,81.4,12.28486866]
[1772301757672,4.02438918,81.422,81.391,16.36293011]
[1772301757875,4.02438918,81.422,81.392,4.07655939]
[1772301758273,4.02438918,81.419,81.391,12.28637072]
[1772301759769,4.02438918,81.417,81.391,12.28637072]
[1772301760167,4.02438918,81.417,81.382,4.07655939]
[1772301761366,4.02438918,81.417,81.384,4.07655939]
[1772301761968,4.02438918,81.415,81.384,4.07655939]
[1772301764691,4.02438918,81.421,81.391,4.07655939]
[1772301766279,4.02438918,81.421,81.401,4.08961294]
[1772301766680,4.02438918,81.421,81.401,16.37433476]
[1772301766899,1e-08,81.423,81.402,4.08961294]
[1772301767109,4.23386749,81.453,81.412,4.08961294]
[1772301767397,4.23386749,81.453,81.401,42.99687523]
[1772301767398,4.23386749,81.453,81.421,4.08961294]
[1772301768789,0.1,81.47,81.441,4.08961294]
[1772301769099,4.23386749,81.491,81.463,4.08961294]
[1772301769301,4.23386749,81.499,81.48,16.15818478]
[1772301769797,4.23386749,81.499,81.474,4.08961294]
[1772301770184,16.25818478,81.51,81.434,5.36086188]
[1772301770185,0.1,81.51,81.491,4.08961294]
[1772301770803,4.23386749,81.509,81.485,12.27210418]
[1772301771006,4.23386749,81.509,81.476,12.27355294]
[1772301772438,4.23386749,81.509,81.472,12.27414153]
[1772301772884,16.25818478,81.51,81.472,12.27414153]
[1772301772885,4.23386749,81.507,81.472,12.27414153]
[1772301774005,16.25818478,81.51,81.472,12.27414153]
[1772301774006,4.23386749,81.505,81.472,12.27414153]
[1772301774209,4.23386749,81.499,81.461,4.08961294]
[1772301774386,4.23386749,81.489,81.453,4.08961294]
[1772301774586,4.23386749,81.504,81.471,4.08961294]
[1772301774802,0.1,81.51,81.491,4.08961294]
[1772301775109,4.23386749,81.526,81.5,20.24779772]
[1772301775293,4.23386749,81.526,81.5,4.08961294]
[1772301775489,4.23386749,81.526,81.5,20.24779772]
[1772301775689,4.23386749,81.526,81.501,4.08961294]
[1772301775894,4.23386749,81.534,81.501,4.08961294]
[1772301776092,4.23386749,81.532,81.503,4.08961294]
[1772301776502,4.23386749,81.541,81.511,4.08961294]
[1772301776888,0.77999997,81.545,81.521,4.08961294]
[1772301777901,13.04327318,81.545,81.521,4.08961294]
[1772301778108,13.04327318,81.545,81.522,12.26662741]
[1772301778305,4.23386749,81.544,81.512,4.08961294]
[1772301778914,4.23386749,81.544,81.513,4.08961294]
[1772301779322,16.49718545,81.544,81.513,4.08961294]
[1772301779489,4.23386749,81.544,81.513,4.08961294]
[1772301779801,16.49718545,81.544,81.513,4.08961294]
[1772301780106,1e-08,81.545,81.533,4.08961294]
[1772301780417,0.1,81.55,81.532,12.26512289]
[1772301780418,1e-08,81.55,81.541,4.08961294]
[1772301780721,16.25818478,81.58,81.532,12.26512289]
[1772301780722,1e-08,81.565,81.542,4.08961294]
[1772301780902,4.2338675,81.565,81.532,42.92793013]
[1772301781107,16.49417841,81.564,81.533,4.08961294]
[1772301781411,4.23386749,81.563,81.533,4.08961294]
[1772301781821,4.23386749,81.559,81.525,16.35568346]
[1772301782199,4.23386749,81.559,81.522,4.08961294]
[1772301782200,4.23386749,81.558,81.522,4.08961294]
[1772301782619,4.23386749,81.561,81.53,20.24779772]
[1772301782994,4.23386749,81.559,81.53,4.08961294]
[1772301783194,4.23386749,81.559,81.53,20.24779772]
[1772301783595,4.23386749,81.559,81.524,4.08961294]
[1772301784203,16.49508036,81.558,81.531,4.08961294]
[1772301784404,1e-08,81.565,81.531,4.08961294]
[1772301784601,1e-08,81.565,81.541,4.08961294]
[1772301785198,4.23386749,81.563,81.532,4.08961294]
[1772301786098,4.23386749,81.561,81.532,4.08961294]
[1772301786307,4.23386749,81.561,81.533,12.26497246]
[1772301786505,4.23386749,81.561,81.534,4.08961294]
[1772301787216,16.15818478,81.56,81.528,12.26558878]
[1772301787402,4.23386749,81.559,81.528,12.26558878]
[1772301787603,4.23386749,81.559,81.528,16.35520172]
[1772301788518,12.26121287,81.558,81.529,4.08961294]
[1772301788723,4.23386749,81.557,81.522,4.08961294]
[1772301788907,1e-08,81.565,81.531,4.08961294]
[1772301789110,4.23386749,81.549,81.511,4.08961294]
[1772301789519,4.23386749,81.549,81.521,4.08961294]
[1772301790231,4.23386749,81.549,81.511,4.08961294]
[1772301790622,4.23386749,81.547,81.513,4.08961294]
[1772301791212,4.23386749,81.547,81.505,4.08961294]
[1772301791516,4.23386749,81.547,81.511,4.08961294]
[1772301792325,4.23386749,81.539,81.502,16.35913373]
[1772301793034,4.23386749,81.537,81.502,16.35913373]
[1772301793337,6.0129587,81.56,81.52,10.10257164]
[1772301793338,4.23386749,81.55,81.52,10.10257164]
[1772301793524,4.23386749,81.55,81.513,4.08961294]
[1772301793525,4.23386749,81.549,81.513,4.08961294]
[1772301793915,4.23386749,81.549,81.505,4.08961294]
[1772301794319,4.23386749,81.539,81.505,4.08961294]
[1772301796142,6.0129587,81.56,81.493,12.27086118]
[1772301796143,4.23386749,81.529,81.493,12.27086118]
[1772301796520,4.23386749,81.529,81.494,3.89514922]
[1772301797638,3.89059084,81.527,81.496,3.89514922]
[1772301797847,6.0129587,81.55,81.511,3.89514922]
[1772301798024,49.02148106,81.597,81.495,42.94742008]
[1772301798025,6.1129587,81.58,81.541,3.89514922]
[1772301798229,12.25903717,81.573,81.541,3.89514922]
[1772301798442,0.1,81.58,81.55,9.90810792]
[1772301798623,6.1129587,81.58,81.55,3.89514922]
[1772301798947,0.1,81.58,81.551,3.89514922]
[1772301799550,0.1,81.58,81.553,3.89514922]
[1772301799725,3.89059084,81.579,81.552,10.56407548]
[1772301800349,3.89059084,81.579,81.552,41.2193629]
[1772301800540,3.89059084,81.579,81.522,1.22666274]
[1772301800541,3.89059084,81.579,81.547,12.26279934]
[1772301801640,12.25820686,81.578,81.541,12.26376914]
[1772301801943,3.89059084,81.577,81.541,12.26376914]
[1772301802140,3.89059084,81.569,81.531,12.26527333]
[1772301802724,42.90372403,81.578,81.52,16.0916498]
[1772301802725,3.89059084,81.559,81.52,16.0916498]
[1772301802944,3.89059084,81.559,81.521,12.2666586]
[1772301804847,3.89059084,81.557,81.521,12.2666586]
[1772301805146,3.89059084,81.557,81.522,3.89514922]
[1772301805655,3.89059085,81.565,81.531,3.89514922]
[1772301807124,3.89059085,81.565,81.511,49.07270142]
[1772301807125,3.89059084,81.559,81.523,3.89514922]
[1772301809736,3.89059084,81.559,81.524,42.93214268]
[1772301809969,3.89059084,81.559,81.525,3.89514922]
[1772301810544,3.89059084,81.557,81.525,3.89514922]
[1772301811057,3.89059084,81.557,81.524,42.93214268]
[1772301811258,3.89059084,81.557,81.524,12.26632648]
[1772301811750,12.26121287,81.558,81.508,3.89514922]
[1772301811751,3.89059084,81.547,81.508,3.89514922]
[1772301811950,3.89059084,81.547,81.512,3.89514922]
[1772301813755,12.26301719,81.546,81.513,12.26798179]
[1772301813962,3.89059084,81.545,81.514,3.89514922]
[1772301814162,3.89059084,81.545,81.513,42.93793627]
[1772301814538,3.89059084,81.545,81.513,12.26798179]
[1772301815937,3.89059084,81.543,81.508,12.26873435]
[1772301816960,3.89059084,81.539,81.503,12.26939236]
[1772301817948,3.89059084,81.537,81.5,16.0916498]
[1772301818262,3.89059084,81.537,81.501,3.89514922]
[1772301819254,3.89059084,81.535,81.502,12.26963755]
[1772301821148,3.89059084,81.535,81.503,3.89514922]
[1772301821348,3.89059084,81.533,81.504,12.26933647]
[1772301824762,3.87942773,81.531,81.504,16.46303834]
[1772301825266,12.26256606,81.549,81.511,4.19370187]
[1772301825652,3.87942773,81.548,81.511,4.19370187]
[1772301826847,4.11585604,81.546,81.512,12.26813229]
[1772301827044,12.26286681,81.547,81.495,12.27069145]
[1772301827045,4.11585604,81.539,81.495,12.27069145]
[1772301827249,42.92003384,81.547,81.496,4.03319141]
[1772301827250,4.11585604,81.529,81.496,4.03319141]
[1772301827963,4.11585604,81.536,81.501,4.03319141]
[1772301829069,0.74599999,81.554,81.502,12.26963755]
[1772301829070,4.11585604,81.529,81.502,12.26963755]
[1772301829858,4.11585604,81.519,81.473,4.03319141]
[1772301830057,4.11585604,81.509,81.473,4.03319141]
[1772301830645,4.11585604,81.499,81.464,4.03319141]
[1772301831059,4.11585604,81.497,81.465,12.27521021]
[1772301831754,4.11585604,81.489,81.454,4.03319141]
[1772301833259,4.11585604,81.488,81.456,4.03319141]
[1772301835272,4.11585604,81.488,81.458,4.03319141]
[1772301835473,12.27189613,81.487,81.458,4.03319141]
[1772301835689,4.11585604,81.486,81.458,4.03319141]
[1772301837371,4.11585604,81.484,81.459,12.27611436]
[1772301837570,16.13153503,81.48,81.459,12.27611436]
[1772301837770,4.11585604,81.484,81.459,16.30930577]
[1772301838172,4.11585604,81.484,81.46,4.03319141]
[1772301838873,4.11585604,81.484,81.454,16.30999591]
[1772301839073,4.11585604,81.484,81.455,4.03319141]
[1772301839287,20.24739107,81.48,81.455,4.03319141]
[1772301839674,4.11585604,81.48,81.456,12.27656648]
[1772301840164,16.13153503,81.47,81.456,12.27656648]
[1772301840372,4.11585604,81.469,81.45,0.2]
[1772301840562,4.11585604,81.459,81.421,4.03319141]
[1772301840759,4.11585604,81.453,81.421,4.03319141]
[1772301841186,4.11585604,81.449,81.421,4.03319141]
[1772301841784,4.11585604,81.459,81.432,12.28018469]
[1772301841982,4.11585604,81.459,81.432,16.3133761]
[1772301842370,4.11585604,81.459,81.432,12.28018469]
[1772301842569,4.11585604,81.449,81.428,12.2807534]
[1772301844086,4.11585604,81.459,81.428,4.03319141]
[1772301844391,4.11585604,81.469,81.431,4.03319141]
[1772301845390,4.11585604,81.468,81.431,4.03319141]
[1772301846170,4.11585604,81.468,81.433,4.03319141]
[1772301847895,4.11585604,81.475,81.441,4.03319141]
[1772301848270,4.11585604,81.475,81.443,4.03319141]
[1772301848706,0.74599999,81.484,81.45,16.13153503]
[1772301848983,4.11585604,81.499,81.471,4.03319141]
[1772301850783,4.11585604,81.499,81.472,12.27415553]
[1772301853991,4.11585604,81.489,81.457,4.03319141]
[1772301854191,4.11585604,81.489,81.459,4.03319141]
[1772301854370,4.11585604,81.489,81.461,4.03319141]
[1772301857274,4.11585604,81.489,81.463,3.98028796]
[1772301857887,4.11585604,81.489,81.462,42.96481794]
[1772301858089,3.93397616,81.488,81.462,12.27566227]
[1772301859282,3.93397616,81.488,81.453,30.69240832]
[1772301859283,3.93397616,81.488,81.463,3.98028796]
[1772301859592,12.27097194,81.494,81.463,3.98028796]
[1772301859787,12.27054088,81.496,81.463,3.98028796]
[1772301860093,3.93397616,81.495,81.463,3.98028796]
[1772301860691,3.93397616,81.507,81.481,3.98028796]
[1772301861411,3.93397616,81.518,81.481,3.98028796]
[1772301861696,3.93397616,81.518,81.483,3.98028796]
[1772301862688,3.93397616,81.518,81.491,3.98028796]
[1772301863596,3.93397616,81.518,81.492,12.27114317]
[1772301864902,16.20056194,81.523,81.493,3.98028796]
[1772301865086,3.93397616,81.522,81.493,3.98028796]
[1772301867000,3.93397616,81.52,81.492,3.98028796]
[1772301869192,3.93397616,81.52,81.493,12.2709926]
[1772301869400,3.93397616,81.52,81.494,3.98028796]
[1772301870279,3.93397616,81.518,81.494,3.98028796]
[1772301871789,3.93397616,81.499,81.471,3.69383402]
[1772301872195,3.93397616,81.499,81.469,3.98028796]
[1772301873600,3.93397616,81.499,81.471,3.98028796]
[1772301873802,3.93397616,81.499,81.472,12.27415553]
[1772301874109,3.93397616,81.497,81.472,12.27415553]
[1772301874313,3.93397616,81.497,81.472,16.25444349]
[1772301874610,3.93397616,81.497,81.473,3.98028796]
[1772301877116,3.93397616,81.497,81.475,3.98028796]
[1772301878409,3.93397616,81.497,81.477,3.98028796]
[1772301879117,3.93397616,81.506,81.477,3.98028796]
[1772301880724,3.93397616,81.506,81.479,3.98028796]
[1772301882618,3.93397616,81.506,81.48,12.27295041]
[1772301882822,3.93397616,81.504,81.48,12.27295041]
[1772301884323,3.93397616,81.504,81.48,18.29384002]
[1772301886716,3.93397616,81.504,81.483,4.06379467]
[1772301886904,4.09991602,81.51,81.483,4.06379467]
[1772301888227,4.09991602,81.508,81.472,4.06379467]
[1772301889601,4.09991602,81.506,81.48,6.02088961]
[1772301890210,4.09991602,81.506,81.474,4.06379467]
[1772301890418,4.09991602,81.506,81.48,6.02088961]
[1772301891003,4.09991602,81.506,81.473,9.66152715]
[1772301891811,4.09991602,81.504,81.473,9.66152715]
[1772301893225,4.09991602,81.504,81.474,4.06379467]
[1772301893422,4.09991602,81.504,81.48,6.02088961]
[1772301893728,4.09991602,81.504,81.481,12.27279979]
[1772301894023,4.09991602,81.502,81.48,6.02088961]
[1772301894202,4.09991602,81.502,81.479,4.06379467]
[1772301895098,4.09991602,81.502,81.475,12.2736021]
[1772301895923,4.09991602,81.5,81.475,12.2736021]
[1772301896599,4.09991602,81.5,81.476,4.06379467]
[1772301897728,4.09991602,81.5,81.48,6.02088961]
[1772301898810,12.2700892,81.499,81.48,6.02088961]
[1772301899014,4.09991602,81.498,81.477,12.2734023]
[1772301899317,4.09991602,81.498,81.476,4.06379467]
[1772301899516,4.09991602,81.498,81.471,4.06379467]
[1772301900053,4.09991602,81.498,81.464,4.06379467]
[1772301900227,4.09991602,81.498,81.458,4.06379467]
[1772301900414,4.09991602,81.489,81.445,4.06379467]
[1772301900620,4.09991602,81.489,81.447,12.27786723]
[1772301901026,4.09991602,81.487,81.447,12.27786723]
[1772301901216,6.02088961,81.49,81.447,12.27786723]
[1772301901217,4.09991602,81.507,81.47,6.02088961]
[1772301901426,4.09991602,81.507,81.466,4.06379467]
[1772301901728,4.09991602,81.499,81.466,4.06379467]
[1772301902329,4.09991602,81.489,81.447,12.27786723]
[1772301903224,6.02088961,81.49,81.424,3.69383402]
[1772301903225,4.09991602,81.487,81.451,4.06379467]
[1772301903623,4.09991602,81.487,81.46,10.08468428]
[1772301904123,4.09991602,81.495,81.471,4.06379467]
[1772301904717,4.09991602,81.495,81.46,6.02088961]
[1772301905031,4.09991602,81.495,81.461,4.06379467]
[1772301906934,6.02088961,81.49,81.45,6.02088961]
[1772301907132,6.02088961,81.49,81.446,4.06379467]
[1772301907133,6.02088961,81.48,81.446,4.06379467]
[1772301907333,4.09991602,81.479,81.446,4.06379467]
[1772301907717,4.09991602,81.479,81.45,6.02088961]
[1772301908225,4.09991602,81.477,81.451,12.2773201]
[1772301908436,4.09991602,81.477,81.451,16.34111477]
[1772301908838,4.09991602,81.477,81.451,12.2773201]
[1772301909230,4.09991602,81.477,81.446,12.27799668]
[1772301910238,4.09991602,81.477,81.446,16.34179135]
[1772301911317,4.09991602,81.475,81.446,16.34179135]
[1772301911735,4.09991602,81.469,81.431,12.28033549]
[1772301912241,4.09991602,81.469,81.431,16.34413016]
[1772301912438,4.09991602,81.469,81.432,4.06379467]
[1772301912821,4.09991602,81.475,81.441,4.06379467]
[1772301913743,4.09991602,81.473,81.443,4.06379467]
[1772301915434,4.09991602,81.469,81.435,4.06379467]
[1772301915852,4.09991602,81.467,81.436,12.27958151]
[1772301916025,4.09991602,81.467,81.432,12.28013071]
[1772301916226,4.09991602,81.467,81.432,16.09984162]
[1772301916946,4.09991602,81.467,81.433,3.81971091]
[1772301917244,4.0780516,81.459,81.42,6.02366878]
[1772301917440,4.0780516,81.459,81.421,16.10155466]
[1772301917625,4.0780516,81.459,81.422,3.81971091]
[1772301918343,4.0780516,81.457,81.424,3.81971091]
[1772301920439,4.0780516,81.455,81.425,12.2812404]
[1772301921353,4.0780516,81.455,81.425,16.10095131]
[1772301921535,4.0780516,81.455,81.426,3.81971091]
[1772301922851,4.0780516,81.453,81.426,3.81971091]
[1772301923728,4.0780516,81.449,81.42,3.81971091]
[1772301924258,4.0780516,81.449,81.413,3.81971091]
[1772301924443,4.0780516,81.456,81.421,3.81971091]
[1772301924648,1.0,81.47,81.431,3.81971091]
[1772301924649,4.0780516,81.462,81.431,3.81971091]
[1772301924827,4.0780516,81.459,81.419,3.81971091]
[1772301925032,4.0780516,81.459,81.421,3.81971091]
[1772301926451,12.27626506,81.458,81.418,12.28220122]
[1772301926654,12.27626506,81.458,81.41,0.2]
[1772301926655,4.0780516,81.439,81.412,3.81971091]
[1772301928358,4.0780516,81.437,81.414,3.81971091]
[1772301931036,4.0780516,81.437,81.415,12.28274887]
[1772301931436,30.69454539,81.448,81.415,12.28274887]
[1772301931437,4.0780516,81.435,81.415,12.28274887]
[1772301931851,4.0780516,81.435,81.414,3.81971091]
[1772301932153,4.0780516,81.435,81.411,3.81971091]
[1772301933254,4.0780516,81.435,81.412,12.28320149]
[1772301933461,4.0780516,81.435,81.412,16.1029124]
[1772301933660,6.02366878,81.44,81.26,34.02668936]
[1772301933661,4.0780516,81.429,81.39,6.02366878]
[1772301933956,4.0780516,81.429,81.391,3.81971091]
[1772301934955,4.0780516,81.427,81.392,12.28621977]
[1772301936950,4.0780516,81.425,81.392,3.81971091]
[1772301939153,4.0780516,81.423,81.393,16.10577973]
[1772301939962,4.0780516,81.423,81.394,3.81971091]
[1772301941067,4.0780516,81.421,81.395,12.28576693]
[1772301941254,4.0780516,81.421,81.395,16.10547784]
[1772301943155,4.0780516,81.419,81.391,12.28637072]
[1772301943754,4.0780516,81.419,81.391,16.10608163]
[1772301944269,4.0780516,81.417,81.392,3.81971091]
[1772301946652,3.92052771,81.415,81.393,12.28606882]
[1772301947363,3.92052771,81.415,81.394,4.17983124]
[1772301949079,3.92052771,81.413,81.394,4.17983124]
[1772301949280,3.92052771,81.413,81.395,12.28576693]
[1772301949968,3.92052771,81.413,81.392,4.17983124]
[1772301951066,3.92052771,81.413,81.393,12.28606882]
[1772301951876,3.92052771,81.412,81.382,4.17983124]
[1772301952272,3.92052771,81.412,81.381,12.28788046]
[1772301952475,3.92052771,81.409,81.38,0.2]
[1772301953077,12.28380503,81.408,81.38,0.2]
[1772301953275,3.92052771,81.407,81.38,0.2]
[1772301954466,3.92052771,81.407,81.38,0.2]
[1772301954972,3.92052771,81.405,81.38,0.2]
[1772301957075,3.92052771,81.403,81.382,4.17983124]
[1772301959286,16.20445067,81.408,81.382,4.17983124]
[1772301959475,7.97283476,81.414,81.38,6.22366878]
[1772301959476,3.92052771,81.412,81.384,4.17983124]
[1772301961089,3.92052771,81.425,81.405,4.17983124]
[1772301961289,3.92052771,81.424,81.405,4.17983124]
[1772301961589,30.69986686,81.434,81.405,4.17983124]
[1772301961590,3.92052771,81.436,81.411,4.17983124]
[1772301962093,12.27912916,81.439,81.411,4.17983124]
[1772301962593,3.92052771,81.438,81.398,4.17983124]
[1772301963370,3.92052771,81.429,81.398,4.17983124]
[1772301963585,3.92052771,81.427,81.399,12.2851632]
[1772301964180,3.92052771,81.427,81.399,4.17983124]
[1772301965884,3.92052771,81.425,81.4,12.28501228]
[1772301966087,3.92052771,81.425,81.393,4.17983124]
[1772301966890,3.92052771,81.419,81.388,4.17983124]
[1772301968277,3.92052771,81.417,81.388,4.17983124]
[1772301968487,3.92052771,81.417,81.383,12.28757848]
[1772301969001,3.92052771,81.409,81.38,0.2]
[1772301970896,3.92052771,81.407,81.38,0.2]
[1772301971293,3.92052771,81.407,81.37,4.37983124]
[1772301971501,42.9933176,81.408,81.37,4.37983124]
[1772301971502,3.92052771,81.399,81.37,4.37983124]
[1772301972480,3.92052771,81.397,81.37,4.37983124]
[1772301975003,3.92052771,81.395,81.37,4.37983124]
[1772301976199,3.92052771,81.395,81.372,4.17983124]
[1772301976995,3.94580348,81.389,81.36,0.2]
[1772301977300,3.94580348,81.379,81.36,0.2]
[1772301979201,3.94580348,81.377,81.36,0.2]
[1772301979599,3.94580348,81.382,81.361,3.96371482]
[1772301979798,3.94580348,81.382,81.36,0.2]
[1772301980104,12.28725716,81.386,81.345,3.96371482]
[1772301980105,3.94580348,81.379,81.345,3.96371482]
[1772301980482,3.94580348,81.379,81.351,3.96371482]
[1772301981089,3.94580348,81.385,81.351,3.96371482]
[1772301981405,12.2874275,81.384,81.352,12.29226079]
[1772301981592,3.94580348,81.383,81.353,3.96371482]
[1772301982092,3.94580348,81.379,81.347,12.29294353]
[1772301983203,3.94580348,81.379,81.344,3.96371482]
[1772301983604,43.00916709,81.378,81.345,12.29331858]
[1772301983789,3.94580348,81.377,81.345,12.29331858]
[1772301984902,3.94580348,81.375,81.345,12.29331858]
[1772301985102,12.28863546,81.376,81.351,3.96371482]
[1772301985682,3.94580348,81.375,81.351,3.96371482]
[1772301986607,12.28757848,81.383,81.351,3.96371482]
[1772301986912,3.94580348,81.382,81.351,3.96371482]
[1772301987089,3.94580348,81.38,81.353,3.96371482]
[1772301988596,30.71809076,81.386,81.353,3.96371482]
[1772301988597,3.94580348,81.378,81.353,3.96371482]
[1772301988906,3.94580348,81.378,81.354,12.2919586]
[1772301990007,3.94580348,81.378,81.351,3.96371482]
[1772301990412,3.94580348,81.378,81.353,3.96371482]
[1772301990783,3.94580348,81.376,81.353,3.96371482]
[1772301991905,30.71735865,81.388,81.353,3.96371482]
[1772301992099,3.94580348,81.383,81.355,3.96371482]
[1772301993710,3.94580348,81.383,81.356,12.29165642]
[1772301994010,3.94580348,81.381,81.351,3.96371482]
[1772301995412,3.94580348,81.379,81.343,3.96371482]
[1772301995907,3.94580348,81.377,81.344,16.25718452]
[1772301996113,3.94580348,81.369,81.34,16.45775112]
[1772301996310,3.94580348,81.369,81.341,3.96371482]
[1772301997508,3.94580348,81.369,81.342,3.96371482]
[1772301997715,3.94580348,81.386,81.351,3.96371482]
[1772301997917,3.94580348,81.386,81.361,3.96371482]
[1772301999202,3.94580348,81.386,81.353,3.96371482]
[1772301999707,3.94580348,81.384,81.354,12.2919586]
[1772302000208,3.94580348,81.379,81.348,12.29275497]
[1772302000811,3.94580348,81.379,81.349,3.96371482]
[1772302002002,12.285616,81.396,81.371,3.96371482]
[1772302002810,3.94580348,81.43,81.391,3.96371482]
[1772302003002,0.74299997,81.436,81.411,3.96371482]
[1772302003418,3.94580348,81.451,81.421,3.96371482]
[1772302004120,3.94580348,81.449,81.421,3.96371482]
[1772302004314,3.94580348,81.439,81.4,6.03594867]
[1772302004514,3.94580348,81.439,81.401,12.28486136]
[1772302004706,3.94580348,81.439,81.401,16.24857618]
[1772302005620,3.94580348,81.439,81.402,3.80306464]
[1772302005823,12.27747084,81.45,81.421,3.80306464]
[1772302006323,3.80651832,81.458,81.422,3.80306464]
[1772302008331,4.05498621,81.456,81.422,3.80306464]
[1772302009413,4.05498621,81.456,81.424,4.08824575]
[1772302011926,4.05498621,81.449,81.418,4.08824575]
[1772302013529,4.05498621,81.447,81.418,4.08824575]
[1772302014135,4.05498621,81.447,81.421,4.08824575]
[1772302015913,12.27807381,81.446,81.421,4.08824575]
[1772302016533,16.33306002,81.446,81.421,4.08824575]
[1772302017141,4.05498621,81.445,81.41,6.03594867]
[1772302017339,4.05498621,81.439,81.402,4.08824575]
[1772302018823,4.05498621,81.429,81.402,4.08824575]
[1772302019033,4.05498621,81.427,81.402,4.08824575]
[1772302019237,4.05498621,81.427,81.396,4.08824575]
[1772302019941,12.28078793,81.428,81.401,4.08824575]
[1772302020168,4.05498621,81.435,81.401,4.08824575]
[1772302020446,4.05498621,81.439,81.401,4.08824575]
[1772302021231,4.05498621,81.437,81.403,4.08824575]
[1772302022550,12.27927994,81.438,81.411,4.08824575]
[1772302022726,4.05498621,81.456,81.421,4.08824575]
[1772302023221,4.05498621,81.456,81.431,4.08824575]
[1772302023655,12.2767172,81.455,81.431,4.08824575]
[1772302024154,12.27539472,81.464,81.44,6.03594867]
[1772302024348,12.27589072,81.461,81.441,4.08824575]
[1772302024833,12.27531956,81.465,81.441,4.08824575]
[1772302025033,4.21288485,81.485,81.451,0.09488126]
[1772302026447,4.21288485,81.479,81.442,12.27857956]
[1772302026653,4.21288485,81.479,81.421,3.69383402]
[1772302026654,4.21288485,81.459,81.423,0.11901066]
[1772302026822,4.21288485,81.459,81.371,49.15744392]
[1772302026823,4.21288485,81.449,81.414,0.11901066]
[1772302027223,4.21288485,81.449,81.421,0.11901066]
[1772302027670,12.27777232,81.448,81.421,0.11901066]
[1772302028856,4.21288485,81.475,81.421,0.11901066]
[1772302029041,4.21288485,81.475,81.45,6.03594867]
[1772302029246,4.21288485,81.475,81.451,0.14267844]
[1772302029429,4.21288485,81.491,81.461,0.154302]
[1772302030248,4.21288485,81.489,81.454,0.154302]
[1772302031032,4.21288485,81.487,81.454,0.154302]
[1772302032037,1e-08,81.494,81.48,6.03594867]
[1772302033244,1e-08,81.494,81.482,0.02256039]
[1772302037554,0.1,81.51,81.481,42.95479927]
[1772302037555,4.31500272,81.509,81.481,42.95479927]
[1772302037732,12.36705239,81.52,81.481,42.95479927]
[1772302037733,0.1,81.52,81.5,6.01791189]
[1772302037929,4.33994794,81.547,81.51,6.01791189]
[1772302038144,4.33994794,81.547,81.52,6.01791189]
[1772302038533,4.33994794,81.539,81.51,6.01791189]
[1772302038832,4.33994794,81.537,81.511,12.2682828]
[1772302039852,4.33994794,81.544,81.52,6.01791189]
[1772302040049,12.26351561,81.543,81.52,6.01791189]
[1772302040351,12.26260679,81.549,81.521,0.03096033]
[1772302040560,0.06903967,81.54,81.53,6.01791189]
[1772302040937,0.1,81.55,81.53,18.28326026]
[1772302041346,0.1,81.55,81.53,28.36648823]
[1772302041545,0.1,81.55,81.51,30.67106345]
[1772302041850,0.1,81.55,81.53,16.10113986]
[1772302042557,4.4554281,81.55,81.52,16.10113986]
[1772302043050,4.3554281,81.548,81.52,28.36795877]
[1772302043838,4.3554281,81.548,81.515,12.26759395]
[1772302044153,12.26256606,81.549,81.511,0.02995876]
[1772302044154,4.3554281,81.549,81.511,0.02995876]
[1772302044336,4.3554281,81.548,81.52,16.10113986]
[1772302044757,4.3554281,81.548,81.53,16.10113986]
[1772302045156,4.3554281,81.548,81.531,12.26527333]
[1772302045357,4.3554281,81.548,81.53,16.10113986]
[1772302045858,4.3554281,81.548,81.531,12.26527333]
[1772302046262,0.1,81.55,81.531,12.26527333]
[1772302046563,0.1,81.55,81.54,16.10113986]
[1772302047239,4.3554281,81.549,81.531,12.26527333]
[1772302047451,0.1,81.55,81.531,12.26527333]
[1772302048641,0.1,81.55,81.531,42.92845665]
[1772302048954,0.1,81.55,81.54,16.10113986]
[1772302049157,0.1,81.55,81.541,12.26376914]
[1772302050466,0.1,81.55,81.54,16.10113986]
[1772302050653,0.1,81.55,81.54,28.36491324]
[1772302051168,4.3554281,81.549,81.512,0.09623071]